bitfinex-derivatives/quotes_BTCF0:USTF0_20251028
["timestamp","ask_amount","ask_price","bid_price","bid_amount"]
[1761657554200,0.01395,115010.0,115000.0,0.01484]
[1761657554403,0.05787,115010.0,115000.0,0.39048]
[1761657554605,0.05787,115010.0,115000.0,0.39308]
[1761657555713,0.22806537,115010.0,115000.0,0.39048]
[1761657558397,0.05787,115010.0,115000.0,0.39048]
[1761657558707,0.22806537,115010.0,115000.0,0.39048]
[1761657559594,0.25264123,115010.0,115000.0,0.39048]
[1761657560007,0.25524123,115010.0,115000.0,0.39048]
[1761657560210,0.0579,115000.0,114990.0,0.39048]
[1761657560408,0.22809537,115000.0,114990.0,0.39048]
[1761657563614,0.0579,115000.0,114990.0,0.39048]
[1761657563814,0.22809537,115000.0,114990.0,0.39048]
[1761657564213,0.25375983,115000.0,114990.0,0.39048]
[1761657570608,0.08356446,115000.0,114990.0,0.39048]
[1761657570807,0.25375983,115000.0,114990.0,0.39048]
[1761657572128,0.31375983,115000.0,114990.0,0.39048]
[1761657572629,0.05871,114980.0,114970.0,0.40140381]
[1761657572926,0.22890537,114980.0,114970.0,0.40140381]
[1761657573226,0.22890537,114980.0,114970.0,1.00140381]
[1761657573629,0.22890537,114980.0,114970.0,0.39048]
[1761657574923,0.08439985,114980.0,114970.0,0.39048]
[1761657575123,0.25459522,114980.0,114970.0,0.39048]
[1761657575322,0.25459737,114980.0,114970.0,0.39048]
[1761657577125,0.25459737,114980.0,114970.0,0.02968]
[1761657578818,0.25719737,114980.0,114970.0,0.02968]
[1761657579124,0.25459737,114980.0,114970.0,0.02968]
[1761657579324,0.25719737,114980.0,114970.0,0.02968]
[1761657579526,0.25919737,114980.0,114970.0,0.02968]
[1761657579721,0.05871,114970.0,114960.0,0.39048]
[1761657579923,0.25457381,114970.0,114960.0,0.39048]
[1761657582121,0.08437844,114970.0,114960.0,0.39048]
[1761657582321,0.25457381,114970.0,114960.0,0.39048]
[1761657582718,0.27150537,114970.0,114960.0,0.02968]
[1761657582922,0.29715469,114970.0,114960.0,0.01484]
[1761657584331,0.05871,114960.0,114950.0,0.39048]
[1761657584629,0.22890537,114960.0,114950.0,0.39048]
[1761657584832,0.23150537,114960.0,114950.0,0.39048]
[1761657585026,0.39910074,114960.0,114940.0,0.36087731]
[1761657585231,0.22890537,114950.0,114940.0,0.39055731]
[1761657587736,0.2291158,114950.0,114940.0,0.39055731]
[1761657587926,0.2291158,114950.0,114940.0,0.39355731]
[1761657588126,0.05871,114950.0,114940.0,0.56396311]
[1761657588335,0.2291158,114960.0,114950.0,0.02968]
[1761657588633,0.25472744,114960.0,114950.0,0.2000858]
[1761657589038,0.25472702,114960.0,114950.0,0.02968]
[1761657591138,0.42513282,114960.0,114950.0,0.02968]
[1761657596740,0.25472702,114960.0,114950.0,0.02968]
[1761657596931,0.42513282,114960.0,114950.0,0.02968]
[1761657597129,0.25472702,114960.0,114950.0,0.02968]
[1761657598640,0.42513282,114960.0,114950.0,0.02968]
[1761657600439,0.04811122,114960.0,114950.0,0.2026858]
[1761657600639,0.40498036,114980.0,114970.0,0.02968]
[1761657600640,0.05605,114980.0,114970.0,0.02968]
[1761657600845,0.05605,114980.0,114970.0,0.5608858]
[1761657601041,0.05605,114980.0,114970.0,0.5634858]
[1761657601643,0.2264558,114980.0,114970.0,0.5608858]
[1761657602040,0.2304558,114980.0,114970.0,0.5608858]
[1761657602437,0.2304558,114980.0,114970.0,0.39048]
[1761657602639,0.2304558,114980.0,114970.0,0.5608858]
[1761657606848,0.2304558,114980.0,114970.0,0.39048]
[1761657608944,0.2304558,114980.0,114970.0,0.5608858]
[1761657609656,0.2304558,114980.0,114970.0,0.39048]
[1761657612652,0.25689301,114980.0,114970.0,0.39048]
[1761657613140,0.2304558,114980.0,114970.0,0.39048]
[1761657613342,0.4008616,114980.0,114970.0,0.39048]
[1761657613543,0.05756,114970.0,114960.0,0.39048]
[1761657613743,0.2279658,114970.0,114960.0,0.39048]
[1761657614048,0.2279658,114970.0,114960.0,0.5608858]
[1761657614249,0.05756,114970.0,114960.0,0.5608858]
[1761657614448,0.2279658,114970.0,114960.0,0.7312916]
[1761657614649,0.04464,114970.0,114960.0,0.7312916]
[1761657614856,0.06173,114980.0,114970.0,0.02968]
[1761657615059,0.08816561,114980.0,114970.0,0.5634858]
[1761657615357,0.2281358,114980.0,114970.0,0.5634858]
[1761657615652,0.2281358,114980.0,114970.0,0.5608858]
[1761657616240,0.06173,114980.0,114970.0,0.5608858]
[1761657616848,0.2321358,114980.0,114970.0,0.5608858]
[1761657617441,0.06173,114980.0,114970.0,0.5608858]
[1761657620164,0.06173,114980.0,114970.0,0.5634858]
[1761657621950,0.04864,114980.0,114970.0,0.6504714]
[1761657622156,0.004,114980.0,114970.0,0.5634858]
[1761657622664,0.004,114980.0,114970.0,0.95201593]
[1761657623257,0.004,114980.0,114970.0,0.78161013]
[1761657623564,0.04864,114980.0,114970.0,0.78161013]
[1761657623747,0.004,114980.0,114970.0,0.95201593]
[1761657624063,0.05407469,115020.0,115010.0,0.1112953]
[1761657624263,0.08052899,115020.0,115010.0,0.74594]
[1761657624562,0.03066,115020.0,115010.0,1.0059011]
[1761657624759,0.00772,115020.0,115010.0,1.0059011]
[1761657624958,0.00683164,115020.0,115010.0,1.47758429]
[1761657625169,0.00683164,115020.0,115010.0,1.30717849]
[1761657625660,0.00883164,115020.0,115010.0,1.30717849]
[1761657625862,0.00883164,115020.0,115010.0,1.31703314]
[1761657626662,0.00683164,115020.0,115010.0,1.38599409]
[1761657626956,0.00683164,115020.0,115010.0,1.32203314]
[1761657629859,0.00683164,115020.0,115010.0,1.39150188]
[1761657630664,0.00683164,115020.0,115010.0,1.99150188]
[1761657631166,0.04963164,115020.0,115010.0,0.89426624]
[1761657631359,0.06252164,115020.0,115010.0,1.14902744]
[1761657631664,0.06512164,115020.0,115010.0,1.06207204]
[1761657631864,0.23552744,115020.0,115010.0,0.9213458]
[1761657633356,0.23552744,115020.0,115010.0,0.74594]
[1761657633561,0.23552744,115020.0,115010.0,0.9223458]
[1761657633959,0.40593324,115020.0,115010.0,0.75194]
[1761657634159,0.40593324,115020.0,115010.0,0.39114]
[1761657634363,0.43237272,115020.0,115010.0,0.39114]
[1761657634564,0.26196692,115020.0,115010.0,0.39114]
[1761657634970,0.43237272,115020.0,115010.0,0.39114]
[1761657635157,0.43497272,115020.0,115010.0,0.39114]
[1761657635369,0.09416112,115020.0,115010.0,0.39114]
[1761657635571,0.26456692,115020.0,115010.0,0.39114]
[1761657635764,0.09156112,115020.0,115010.0,0.5615458]
[1761657636068,0.09156112,115020.0,115010.0,0.5585458]
[1761657636280,0.08896112,115020.0,115010.0,0.5585458]
[1761657636568,0.03327112,115020.0,115010.0,0.5555458]
[1761657636768,0.05466112,115020.0,115010.0,0.5585458]
[1761657637471,0.05466112,115020.0,115010.0,0.5615458]
[1761657637865,0.03327112,115020.0,115010.0,0.9223458]
[1761657638066,0.00683164,115020.0,115010.0,0.9249458]
[1761657638468,0.02822164,115020.0,115010.0,0.9249458]
[1761657638665,0.00683164,115020.0,115010.0,1.0119013]
[1761657638858,0.02822164,115020.0,115010.0,1.0119013]
[1761657639269,0.00683164,115020.0,115010.0,1.0119013]
[1761657639464,0.00683164,115020.0,115010.0,0.8414955]
[1761657639871,0.00683164,115020.0,115010.0,1.1843071]
[1761657640571,0.00683164,115020.0,115010.0,0.8434955]
[1761657640777,0.00683164,115020.0,115010.0,1.1843071]
[1761657641163,0.00683164,115020.0,115010.0,0.8434955]
[1761657641471,0.00683164,115020.0,115010.0,1.1843071]
[1761657642879,0.03501542,115070.0,115060.0,0.0869178]
[1761657643178,0.01289,115080.0,115070.0,0.086906]
[1761657643473,0.01289,115090.0,115080.0,0.0869027]
[1761657643680,0.01289,115090.0,115080.0,1.07393031]
[1761657643973,0.01289,115090.0,115080.0,1.20499725]
[1761657644179,0.08569,115110.0,115080.0,0.85266694]
[1761657644477,0.04289,115110.0,115100.0,0.98702761]
[1761657644869,0.04289,115110.0,115100.0,1.11775963]
[1761657645173,0.04289,115110.0,115100.0,1.20464703]
[1761657645375,0.04289,115110.0,115100.0,1.2147992]
[1761657645767,0.08569,115110.0,115100.0,1.11775963]
[1761657645973,0.09438,115110.0,115100.0,1.11775963]
[1761657646467,0.11258,115110.0,115100.0,1.11775963]
[1761657646677,0.11258,115110.0,115100.0,0.98702761]
[1761657646876,0.13592578,115110.0,115100.0,0.7216]
[1761657647473,0.04289,115110.0,115100.0,1.11748544]
[1761657647785,0.04289,115110.0,115100.0,1.20791204]
[1761657648178,0.03,115110.0,115100.0,1.20791204]
[1761657648473,0.05139,115110.0,115100.0,1.20791204]
[1761657648776,0.0728,115110.0,115100.0,0.85205783]
[1761657648980,0.0728,115110.0,115100.0,1.20791204]
[1761657649181,0.03,115110.0,115100.0,0.85205783]
[1761657649474,0.03,115110.0,115100.0,1.20791204]
[1761657649776,0.0728,115110.0,115100.0,0.85205783]
[1761657649977,0.0728,115110.0,115100.0,1.20791204]
[1761657650187,0.09969,115110.0,115100.0,0.85205783]
[1761657650372,0.08149,115110.0,115100.0,0.85205783]
[1761657650674,0.09969,115110.0,115100.0,1.20791204]
[1761657651280,0.12303578,115110.0,115100.0,0.7216]
[1761657651784,0.12303578,115110.0,115090.0,0.3608]
[1761657651785,0.05569,115100.0,115090.0,0.3608]
[1761657651968,0.10852578,115100.0,115090.0,0.3608]
[1761657652170,0.10592578,115100.0,115090.0,0.3608]
[1761657652381,0.10852578,115100.0,115090.0,0.3608]
[1761657652580,0.0428,115090.0,115080.0,0.3608]
[1761657652781,0.09563578,115090.0,115080.0,0.3608]
[1761657652981,0.09303578,115090.0,115080.0,0.3608]
[1761657653372,0.11982357,115090.0,115080.0,0.3608]
[1761657653773,0.05569,115080.0,115070.0,0.3608]
[1761657654087,0.10852578,115080.0,115070.0,0.3608]
[1761657654573,0.10592578,115080.0,115070.0,0.3608]
[1761657655584,0.08258,115080.0,115070.0,0.3608]
[1761657655769,0.10592578,115080.0,115070.0,0.3608]
[1761657656582,0.10592578,115080.0,115070.0,0.3618]
[1761657657681,0.10852578,115080.0,115070.0,0.001]
[1761657658077,0.1320278,115080.0,115070.0,0.001]
[1761657659182,0.4928278,115080.0,115070.0,0.001]
[1761657660577,0.1320278,115080.0,115070.0,0.001]
[1761657660784,0.10852578,115080.0,115070.0,0.001]
[1761657661384,0.49282808,115080.0,115070.0,0.001]
[1761657662092,1.09282808,115080.0,115070.0,0.001]
[1761657662475,0.49282808,115080.0,115070.0,0.001]
[1761657663577,0.05807,115060.0,115050.0,0.3608]
[1761657663772,0.08496,115060.0,115050.0,0.3608]
[1761657663972,0.10830578,115060.0,115050.0,0.3608]
[1761657664385,0.11090578,115060.0,115050.0,0.3608]
[1761657664579,0.10830578,115060.0,115050.0,0.3608]
[1761657664885,0.04461,115050.0,115040.0,0.71665421]
[1761657665069,0.06281,115050.0,115040.0,0.71665421]
[1761657666779,0.04461,115050.0,115040.0,0.71665421]
[1761657666979,0.04461,115050.0,115040.0,0.71965421]
[1761657667180,0.06281,115050.0,115040.0,0.71965421]
[1761657670784,0.0755,115050.0,115040.0,0.3638]
[1761657670985,0.0755,115050.0,115040.0,0.71965421]
[1761657672775,0.0755,115050.0,115040.0,0.3638]
[1761657672974,0.10753578,115050.0,115040.0,0.3638]
[1761657675198,0.08933578,115050.0,115040.0,0.71965421]
[1761657675378,0.10753578,115050.0,115040.0,0.71965421]
[1761657675578,0.08933578,115050.0,115040.0,0.71965421]
[1761657675780,0.10753578,115050.0,115040.0,0.71965421]
[1761657679281,0.01269,115050.0,115040.0,1.40658601]
[1761657679478,0.01346,115060.0,115050.0,0.0869243]
[1761657679685,0.05668,115060.0,115050.0,0.3608]
[1761657679880,0.07488,115060.0,115050.0,0.71665421]
[1761657680086,0.03504,115060.0,115050.0,0.80357851]
[1761657680398,0.01346,115060.0,115050.0,0.9336017]
[1761657681491,0.01346,115060.0,115050.0,0.9346017]
[1761657682198,0.01269,115070.0,115060.0,0.0869172]
[1761657682399,0.01269,115070.0,115060.0,0.80357141]
[1761657682601,0.01269,115070.0,115060.0,1.53474056]
[1761657683492,0.01289,115080.0,115070.0,0.0869113]
[1761657683691,0.01289,115080.0,115070.0,0.4477113]
[1761657683892,0.01289,115080.0,115070.0,1.53411442]
[1761657684299,0.05611,115080.0,115070.0,0.84720312]
[1761657684493,0.07431,115080.0,115070.0,0.84720312]
[1761657685007,0.083,115080.0,115070.0,0.84720312]
[1761657685296,0.083,115080.0,115070.0,0.49134891]
[1761657685602,0.083,115080.0,115070.0,0.84720312]
[1761657685994,0.083,115080.0,115070.0,0.49134891]
[1761657686198,0.13026245,115080.0,115070.0,0.49134891]
[1761657686396,0.10634578,115080.0,115070.0,0.49134891]
[1761657686698,0.73026159,115080.0,115070.0,0.3608]
[1761657690106,0.08814578,115080.0,115070.0,0.84712515]
[1761657690593,0.05611,115080.0,115070.0,0.84712515]
[1761657690799,0.05611,115080.0,115070.0,0.93403655]
[1761657691502,0.05611,115080.0,115070.0,0.84712515]
[1761657691698,0.05611,115080.0,115070.0,0.57818224]
[1761657691893,0.05611,115080.0,115070.0,0.93403645]
[1761657692093,0.03453,115080.0,115070.0,0.93403645]
[1761657692589,0.05721,115080.0,115070.0,0.84712515]
[1761657692792,0.05721,115080.0,115070.0,0.93403665]
[1761657693100,0.01289,115080.0,115070.0,0.93403665]
[1761657695000,0.01269,115090.0,115080.0,0.0869039]
[1761657695297,0.01269,115090.0,115080.0,0.80355811]
[1761657695604,0.01269,115090.0,115080.0,1.02154055]
[1761657696992,0.01269,115090.0,115080.0,0.93464826]
[1761657698401,0.01269,115090.0,115080.0,1.53464826]
[1761657698989,0.0575,115090.0,115080.0,0.49189015]
[1761657699198,0.08953578,115090.0,115080.0,0.49189015]
[1761657699502,0.10773578,115090.0,115080.0,0.84774436]
[1761657699692,0.10773578,115090.0,115080.0,0.71665421]
[1761657700088,0.10773578,115090.0,115080.0,0.80355801]
[1761657700292,0.08953578,115090.0,115080.0,0.80355801]
[1761657701005,0.10773578,115090.0,115080.0,0.80355801]
[1761657701199,0.06619,115090.0,115080.0,0.80355801]
[1761657701399,0.06619,115090.0,115080.0,0.4477038]
[1761657701699,0.10773578,115090.0,115080.0,0.3608]
[1761657703504,0.10773578,115090.0,115080.0,0.4477037]
[1761657703701,0.10773578,115090.0,115080.0,0.71665421]
[1761657704400,0.10773578,115090.0,115080.0,0.3608]
[1761657705195,0.04481,115080.0,115070.0,0.3608]
[1761657705503,0.09764578,115080.0,115070.0,0.3608]
[1761657705702,0.11051578,115080.0,115070.0,0.3608]
[1761657706500,0.11051578,115080.0,115070.0,0.3618]
[1761657707810,0.10791578,115080.0,115070.0,0.3618]
[1761657709611,0.13184371,115080.0,115070.0,0.3618]
[1761657710206,0.73184371,115080.0,115070.0,0.3618]
[1761657710411,0.70791578,115080.0,115070.0,0.3618]
[1761657710810,0.70791578,115080.0,115070.0,0.62740085]
[1761657711212,0.10791578,115080.0,115070.0,0.62740085]
[1761657711809,0.10791578,115080.0,115070.0,0.3618]
[1761657713803,0.10791578,115080.0,115070.0,0.62740085]
[1761657714518,0.08971578,115080.0,115070.0,0.62740085]
[1761657714718,0.10791578,115080.0,115070.0,0.62740085]
[1761657715115,0.70791578,115080.0,115070.0,0.62740085]
[1761657715911,0.70791578,115080.0,115070.0,0.3618]
[1761657716114,0.70791578,115080.0,115070.0,0.62740085]
[1761657717217,0.10791578,115080.0,115070.0,0.62740085]
[1761657717423,0.05768,115080.0,115070.0,0.62740085]
[1761657718114,0.05768,115080.0,115070.0,0.3618]
[1761657718321,0.05768,115080.0,115070.0,0.62740085]
[1761657718620,0.07588,115080.0,115070.0,0.62740085]
[1761657719707,0.10791578,115080.0,115070.0,0.3618]
[1761657719913,0.10791578,115080.0,115070.0,0.62740085]
[1761657720507,0.10791578,115080.0,115070.0,0.3618]
[1761657720713,0.10791578,115080.0,115070.0,0.62740085]
[1761657721318,0.10791578,115080.0,115070.0,0.3618]
[1761657721624,0.11051578,115080.0,115070.0,0.3618]
[1761657721824,0.10791578,115080.0,115070.0,0.3618]
[1761657723418,0.10791578,115080.0,115070.0,0.62740085]
[1761657723624,0.10791578,115080.0,115070.0,0.3618]
[1761657725112,0.10791578,115080.0,115070.0,0.001]
[1761657725511,0.13179798,115080.0,115070.0,0.001]
[1761657725722,0.43739883,115080.0,115070.0,0.001]
[1761657726026,0.80079883,115080.0,115070.0,0.001]
[1761657726523,0.05869,115070.0,115060.0,0.3608]
[1761657726724,0.05869,115060.0,115050.0,0.3608]
[1761657727020,0.11152578,115060.0,115050.0,0.3608]
[1761657727614,0.10892578,115060.0,115050.0,0.3608]
[1761657728816,0.10892578,115060.0,115050.0,0.3618]
[1761657735831,0.27897587,115060.0,115050.0,0.53185009]
[1761657736515,0.11152578,115060.0,115050.0,0.53185009]
[1761657736721,0.28157587,115060.0,115050.0,0.53185009]
[1761657737328,0.28157587,115060.0,115050.0,0.17105009]
[1761657737729,0.28157587,115060.0,115050.0,0.001]
[1761657737924,0.28157587,115060.0,115050.0,0.17105009]
[1761657738429,0.30547603,115060.0,115050.0,0.17105009]
[1761657738832,0.30547603,115060.0,115050.0,0.001]
[1761657739226,0.10892578,115060.0,115050.0,0.17105009]
[1761657739425,0.10892578,115060.0,115050.0,0.53185009]
[1761657739828,0.27897587,115060.0,115050.0,0.53185009]
[1761657740132,0.27897587,115060.0,115050.0,0.3618]
[1761657740323,0.27897587,115060.0,115050.0,0.53185009]
[1761657740518,0.27897587,115060.0,115050.0,0.17105009]
[1761657743736,0.10892578,115060.0,115050.0,0.70190018]
[1761657744132,0.10892578,115060.0,115050.0,0.53185009]
[1761657745235,0.10892578,115060.0,115050.0,0.3618]
[1761657745430,0.10892578,115060.0,115050.0,0.53185009]
[1761657747229,0.10023578,115060.0,115050.0,0.3618]
[1761657747435,0.10892578,115060.0,115050.0,0.53185009]
[1761657748224,0.10892578,115060.0,115050.0,0.70190018]
[1761657748433,0.10892578,115060.0,115050.0,0.53185009]
[1761657749738,0.10023578,115060.0,115050.0,0.78882668]
[1761657749935,0.08203578,115060.0,115050.0,0.78882668]
[1761657752341,0.08203578,115060.0,115050.0,0.53185009]
[1761657752541,0.08203578,115060.0,115050.0,0.78882668]
[1761657752742,0.08203578,115060.0,115050.0,0.61877659]
[1761657752950,0.10023578,115060.0,115050.0,0.78882668]
[1761657753243,0.08203578,115060.0,115050.0,0.78882668]
[1761657755441,0.10023578,115060.0,115050.0,0.61877659]
[1761657756736,0.10023578,115060.0,115050.0,0.53185009]
[1761657756936,0.10023578,115060.0,115050.0,0.61877659]
[1761657758744,0.10023578,115060.0,115050.0,0.53185009]
[1761657758949,0.10023578,115060.0,115050.0,0.61877659]
[1761657759150,0.10892578,115060.0,115050.0,0.61877659]
[1761657759443,0.10892578,115060.0,115050.0,0.53185009]
[1761657759639,0.13293118,115060.0,115050.0,0.53185009]
[1761657760550,0.30558127,115060.0,115050.0,0.53185009]
[1761657760736,0.11152578,115060.0,115050.0,0.53185009]
[1761657760936,0.28157587,115060.0,115050.0,0.53185009]
[1761657761449,0.10892578,115060.0,115050.0,0.53185009]
[1761657762138,0.13334854,115060.0,115050.0,0.53185009]
[1761657765049,0.30339863,115060.0,115050.0,0.53185009]
[1761657765446,0.30599863,115060.0,115050.0,0.3618]
[1761657765951,0.30599863,115060.0,115050.0,0.53185009]
[1761657766847,0.30599863,115060.0,115050.0,0.3618]
[1761657767146,0.30599863,115060.0,115050.0,0.53185009]
[1761657769053,0.30599863,115060.0,115050.0,0.3618]
[1761657769360,0.30599863,115060.0,115050.0,0.53185009]
[1761657769746,0.13594854,115060.0,115050.0,0.3618]
[1761657770143,0.13594854,115060.0,115050.0,0.001]
[1761657770851,0.3060001,115060.0,115050.0,0.001]
[1761657772245,0.13594854,115060.0,115050.0,0.3618]
[1761657773652,0.13594854,115060.0,115050.0,0.53185156]
[1761657773953,0.13334854,115060.0,115050.0,0.53185156]
[1761657774458,0.11514854,115060.0,115050.0,0.53185156]
[1761657774659,0.13334854,115060.0,115050.0,0.53185156]
[1761657775653,0.10892578,115060.0,115050.0,0.53185156]
[1761657778457,0.0357,115060.0,115050.0,0.78882962]
[1761657778662,0.05675,115060.0,115050.0,0.61877806]
[1761657780365,0.05675,115060.0,115050.0,0.53185156]
[1761657780552,0.07495,115060.0,115050.0,0.53185156]
[1761657780862,0.05675,115060.0,115050.0,0.53185156]
[1761657781452,0.07495,115060.0,115050.0,0.53185156]
[1761657782462,0.07495,115060.0,115050.0,0.61877806]
[1761657783765,0.05675,115060.0,115050.0,0.61877806]
[1761657784263,0.05675,115060.0,115050.0,0.4487265]
[1761657784556,0.07495,115060.0,115050.0,0.61877806]
[1761657784761,0.07495,115060.0,115050.0,0.63206518]
[1761657786359,0.03603132,115090.0,115080.0,0.0869038]
[1761657786653,0.01332,115100.0,115090.0,0.0868963]
[1761657786861,0.01332,115100.0,115090.0,0.27023498]
[1761657787163,0.01332,115100.0,115090.0,1.12253915]
[1761657790161,0.01332,115100.0,115090.0,1.19195959]
[1761657791263,0.05602,115100.0,115090.0,1.19195959]
[1761657791465,0.07422,115100.0,115090.0,1.19195959]
[1761657791659,0.07422,115100.0,115090.0,1.02190803]
[1761657791958,0.10625578,115100.0,115090.0,1.03564285]
[1761657792162,0.10825578,115100.0,115090.0,1.03564285]
[1761657793660,0.10825578,115100.0,115090.0,1.03683525]
[1761657794361,0.10825578,115100.0,115090.0,0.73607952]
[1761657794759,0.11085578,115100.0,115090.0,0.73607952]
[1761657795461,0.11085578,115100.0,115090.0,0.01447952]
[1761657795960,0.11085578,115100.0,115090.0,0.37527952]
[1761657796360,0.11085578,115100.0,115090.0,0.01447952]
[1761657796565,0.11085578,115100.0,115090.0,0.37527952]
[1761657797065,0.11085578,115100.0,115090.0,0.01447952]
[1761657797364,0.11085578,115100.0,115090.0,0.37527952]
[1761657798062,0.28090734,115100.0,115090.0,0.01447952]
[1761657798565,0.30495542,115100.0,115090.0,0.01447952]
[1761657799158,0.04169808,115090.0,115080.0,0.3608]
[1761657799356,0.09193386,115090.0,115080.0,0.3608]
[1761657800565,0.09293386,115090.0,115080.0,0.3608]
[1761657801056,0.09553386,115090.0,115080.0,0.3608]
[1761657801862,0.09293386,115090.0,115080.0,0.53085156]
[1761657804468,0.07473386,115090.0,115080.0,0.53085156]
[1761657804669,0.09293386,115090.0,115080.0,0.3608]
[1761657804861,0.09293386,115090.0,115080.0,0.53085156]
[1761657805261,0.09293386,115090.0,115080.0,0.3608]
[1761657805467,0.09293386,115090.0,115080.0,0.53085156]
[1761657805770,0.09293386,115090.0,115080.0,0.53204396]
[1761657806358,0.69293386,115090.0,115080.0,0.53204396]
[1761657809664,0.69293386,115090.0,115080.0,0.3619924]
[1761657810164,0.69553386,115090.0,115080.0,0.3619924]
[1761657810473,0.69293386,115090.0,115080.0,0.3619924]
[1761657811467,0.09293386,115090.0,115080.0,0.3619924]
[1761657812569,0.09293386,115090.0,115080.0,0.53204396]
[1761657813576,0.09293386,115090.0,115080.0,0.3619924]
[1761657813876,0.09553386,115090.0,115080.0,0.3619924]
[1761657815274,0.09293386,115090.0,115080.0,0.3619924]
[1761657815471,0.11686316,115090.0,115080.0,0.3619924]
[1761657815672,0.09293386,115090.0,115080.0,0.53204396]
[1761657816276,0.11686824,115090.0,115080.0,0.53204396]
[1761657817276,0.11686824,115090.0,115080.0,0.3619924]
[1761657818576,0.2869198,115090.0,115080.0,0.3619924]
[1761657818775,0.11686824,115090.0,115080.0,0.3619924]
[1761657819678,0.11686824,115090.0,115080.0,0.53323636]
[1761657821373,0.10817824,115090.0,115080.0,0.79019192]
[1761657821569,0.03791578,115090.0,115080.0,0.79019192]
[1761657821770,0.001,115090.0,115080.0,0.91994896]
[1761657824975,0.05683,115090.0,115080.0,0.91994896]
[1761657825178,0.07503,115090.0,115080.0,0.7498974]
[1761657825382,0.07503,115090.0,115080.0,0.91994896]
[1761657826480,0.0139,115090.0,115080.0,0.91994896]
[1761657828370,0.001,115090.0,115080.0,1.52114136]
[1761657829574,0.001,115090.0,115080.0,0.92114136]
[1761657831783,0.001,115090.0,115080.0,1.09056355]
[1761657832783,0.04332,115110.0,115100.0,0.086889]
[1761657833081,0.08625,115110.0,115100.0,1.14817254]
[1761657833281,0.08625,115110.0,115100.0,1.27797821]
[1761657833485,0.08625,115110.0,115100.0,1.28155541]
[1761657833983,0.10445,115110.0,115100.0,1.29078542]
[1761657834284,0.08825,115110.0,115100.0,1.29078542]
[1761657834884,0.11514,115110.0,115100.0,0.95110188]
[1761657835080,0.11514,115110.0,115100.0,1.29078542]
[1761657835282,0.09694,115110.0,115100.0,1.29078542]
[1761657835682,0.11514,115110.0,115100.0,1.29078542]
[1761657840176,0.09694,115110.0,115100.0,1.29078542]
[1761657842380,0.29012755,115110.0,115100.0,0.86421288]
[1761657842579,0.13848578,115110.0,115100.0,1.29078542]
[1761657843188,0.12028578,115110.0,115100.0,1.29078542]
[1761657844486,0.05401,115110.0,115100.0,1.46062719]
[1761657844687,0.04532,115110.0,115100.0,1.46062719]
[1761657845276,0.06828,115110.0,115100.0,1.46062719]
[1761657845783,0.10827,115110.0,115100.0,1.29078542]
[1761657846590,0.04532,115110.0,115100.0,1.29078542]
[1761657847291,0.10917,115110.0,115100.0,1.29078542]
[1761657849800,0.11786,115110.0,115100.0,1.29078542]
[1761657849984,0.14120578,115110.0,115100.0,1.12094365]
[1761657850191,0.14120578,115110.0,115100.0,1.29078542]
[1761657852993,0.07221,115110.0,115100.0,1.46062719]
[1761657853185,0.05447,115110.0,115100.0,1.29078542]
[1761657853390,0.09992,115110.0,115100.0,1.29078542]
[1761657854491,0.05447,115110.0,115100.0,1.46062719]
[1761657854692,0.04578,115110.0,115100.0,1.46062719]
[1761657854886,0.04578,115110.0,115100.0,1.29078542]
[1761657855089,0.09123,115110.0,115100.0,1.29078542]
[1761657855390,0.10943,115110.0,115100.0,1.29078542]
[1761657855595,0.09123,115110.0,115100.0,1.29078542]
[1761657855788,0.04578,115110.0,115100.0,1.29078542]
[1761657856186,0.05446565,115150.0,115140.0,0.0868587]
[1761657856391,0.04679244,115150.0,115140.0,0.8084587]
[1761657856603,0.01378,115150.0,115140.0,0.4730881]
[1761657856897,0.01378,115150.0,115140.0,1.1946881]
[1761657856898,0.05923,115150.0,115140.0,1.1946881]
[1761657857197,0.03654,115150.0,115140.0,0.85500456]
[1761657857388,0.06792,115150.0,115140.0,1.1946881]
[1761657857594,0.08912,115150.0,115140.0,1.1946881]
[1761657857791,0.11246578,115150.0,115140.0,1.02484633]
[1761657858093,0.11246578,115150.0,115140.0,0.85500456]
[1761657858287,0.11246578,115150.0,115140.0,1.1946881]
[1761657858695,0.11246578,115150.0,115140.0,0.85500456]
[1761657858994,0.11506578,115150.0,115140.0,1.1946881]
[1761657859183,0.28490755,115150.0,115140.0,0.85500456]
[1761657859492,0.28582906,115150.0,115140.0,0.3643772]
[1761657859697,0.30917484,115150.0,115140.0,0.3643772]
[1761657860195,0.13933307,115150.0,115140.0,0.3643772]
[1761657860391,0.13933307,115150.0,115140.0,0.0035772]
[1761657860598,0.30657484,115150.0,115140.0,0.17341897]
[1761657861094,0.13933307,115150.0,115140.0,0.0035772]
[1761657861289,0.30657484,115150.0,115140.0,0.0035772]
[1761657861485,0.30917484,115150.0,115140.0,0.0035772]
[1761657862598,0.30657484,115150.0,115140.0,0.17341897]
[1761657863699,0.30657484,115150.0,115140.0,0.0035772]
[1761657863894,0.30657484,115150.0,115140.0,0.17341897]
[1761657864493,0.13673307,115150.0,115140.0,0.17341897]
[1761657864696,0.30657484,115150.0,115140.0,0.17341897]
[1761657864896,0.13673307,115150.0,115140.0,0.17341897]
[1761657865099,0.11853307,115150.0,115140.0,0.34326074]
[1761657865599,0.09518729,115150.0,115140.0,0.34326074]
[1761657865802,0.11853307,115150.0,115140.0,0.34326074]
[1761657866002,0.11853307,115150.0,115140.0,0.17341897]
[1761657866500,0.11853307,115150.0,115140.0,0.34326074]
[1761657866797,0.13673307,115150.0,115140.0,0.17341897]
[1761657867001,0.11853307,115150.0,115140.0,0.79091944]
[1761657867206,0.09426578,115150.0,115140.0,0.92168966]
[1761657867393,0.09426578,115150.0,115140.0,0.49514742]
[1761657867704,0.11246578,115150.0,115140.0,0.66498919]
[1761657869199,0.30647876,115150.0,115140.0,0.3643772]
[1761657869499,0.30647876,115150.0,115140.0,0.53421897]
[1761657870197,0.11246578,115150.0,115140.0,0.70406074]
[1761657870596,0.28230755,115150.0,115140.0,0.53421897]
[1761657870789,0.11246578,115150.0,115140.0,0.53421897]
[1761657870994,0.28230755,115150.0,115140.0,0.53421897]
[1761657871393,0.28230755,115150.0,115140.0,0.3643772]
[1761657871601,0.11246578,115150.0,115140.0,0.53421897]
[1761657871995,0.08912,115150.0,115140.0,0.53421897]
[1761657872199,0.11246578,115150.0,115140.0,0.53421897]
[1761657872504,0.11246578,115150.0,115140.0,0.3643772]
[1761657872702,0.09426578,115150.0,115140.0,0.79092014]
[1761657872910,0.09426578,115150.0,115140.0,0.34326074]